fUSD/lending_fUSD_20260106
["ID","MTS","AMOUNT","RATE_DAILY","PERIOD"]
[400585400,1767733842169,-500.0,0.00027799,2]
[400585401,1767733842178,-207.4,0.00027799,2]
[400585402,1767733842188,-500.0,0.00027799,2]
[400585403,1767733842197,-215.0738,0.00027799,2]
[400585404,1767733842206,-500.0,0.00027799,2]
[400585405,1767733842216,-223.0315306,0.00027799,2]
[400585406,1767733842226,-500.0,0.00027799,2]
[400585407,1767733842235,-231.28369723,0.00027799,2]
[400585408,1767733842245,-500.0,0.00027799,2]
[400585409,1767733842254,-239.84119403,0.00027799,2]
[400585410,1767733842264,-500.0,0.00027799,2]
[400585411,1767733842273,-248.71531821,0.00027799,2]
[400585412,1767733842285,-500.0,0.00027799,2]
[400585413,1767733842294,-257.91778498,0.00027799,2]
[400585414,1767733842303,-500.0,0.00027799,2]
[400585415,1767733842313,-500.0,0.00027799,2]
[400585416,1767733842323,-267.46074303,0.00027799,2]
[400585417,1767733842333,-394.25813355,0.00027799,2]
[400585418,1767733842343,-500.0,0.00027799,2]
[400585419,1767733842353,-277.35679052,0.00027799,2]
[400585420,1767733842362,-500.0,0.00027799,2]
[400585421,1767733842371,-250.0,0.00027799,2]
[400585422,1767733842381,-500.0,0.00027799,2]
[400585423,1767733842390,-620.0,0.00027799,2]
[400585424,1767733842402,-250.0,0.00027799,2]
[400585425,1767733842412,-500.0,0.00027799,2]
[400585426,1767733842422,-250.0,0.00027799,2]
[400585427,1767733842431,-500.0,0.00027799,2]
[400585428,1767733842441,-250.0,0.00027799,2]
[400585429,1767733842450,-500.0,0.00027799,2]
[400585430,1767733842459,-250.0,0.00027799,2]
[400585431,1767733842470,-500.0,0.00027799,2]
[400585432,1767733842479,-250.0,0.00027799,2]
[400585433,1767733842489,-500.0,0.00027799,2]
[400585434,1767733842498,-250.0,0.00027799,2]
[400585435,1767733842507,-500.0,0.00027799,2]
[400585436,1767733842516,-250.0,0.00027799,2]
[400585437,1767733842526,-500.0,0.00027799,2]
[400585438,1767733842537,-250.0,0.00027799,2]
[400585439,1767733842546,-500.0,0.00027799,2]
[400585440,1767733842556,-250.0,0.00027799,2]
[400585441,1767733842565,-500.0,0.00027799,2]
[400585442,1767733842576,-250.0,0.00027799,2]
[400585443,1767733842585,-250.0,0.00027799,2]
[400585444,1767733842594,-388.87510441,0.00027799,2]
[400585445,1767733842604,-500.0,0.00027799,2]
[400585446,1767733842613,-500.0,0.00027799,2]
[400585447,1767733842623,-500.0,0.00027799,2]
[400585448,1767733842633,-500.0,0.00027799,2]
[400585449,1767733842642,-500.0,0.00027799,2]
[400585450,1767733842652,-500.0,0.00027799,2]
[400585451,1767733842662,-500.0,0.00027799,2]
[400585452,1767733842672,-259.6625457,0.00027799,2]
[400585453,1767733842684,-483.06704357,0.00027896,2]
[400585454,1767733842699,-250.0,0.00027945,5]
[400585455,1767733842709,-1000.0,0.00028,2]
[400585456,1767733842718,-164.66,0.00028053,2]
[400585457,1767733842727,-4814.55666367,0.00028085,2]
[400585458,1767733842737,-14842.29556854,0.00028085,2]
[400585459,1767733842746,-1000.0,0.000282,2]
[400585460,1767733842755,-15679.55911245,0.00028321,2]
[400585461,1767733842765,-264.0,0.00028359,2]
[400585462,1767733842774,-212.0,0.00028359,2]
[400585463,1767733842783,-200.0,0.00028359,2]
[400585464,1767733842792,-214.912,0.00028361,2]
[400585465,1767733842801,-250.0,0.00028361,2]
[400585466,1767733842810,-225.996,0.00028361,2]
[400585467,1767733842820,-157.238,0.00028361,2]
[400585468,1767733842828,-250.0,0.00028361,2]
[400585469,1767733842838,-297.977,0.00028361,2]
[400585470,1767733842847,-163.753,0.00028361,2]
[400585471,1767733842856,-250.0,0.00028361,2]
[400585472,1767733842865,-211.897,0.00028361,2]
[400585473,1767733842875,-250.0,0.00028361,2]
[400585474,1767733842884,-227.625,0.00028361,2]
[400585475,1767733842893,-168.0,0.00028361,2]
[400585476,1767733842902,-1364.493,0.00028361,2]
[400585477,1767733842911,-614.0,0.00028361,2]
[400585478,1767733842920,-350.0,0.00028493,5]
[400585479,1767733842931,-1266.0,0.00028503,2]
[400585480,1767733842940,-433.0,0.00028503,2]
[400585481,1767733842950,-914.0,0.00028556,2]
[400585482,1767733842959,-1200.0,0.00028556,2]
[400585483,1767733842968,-4817.0,0.000286,2]
[400585484,1767733842978,-2435.0,0.000286,2]
[400585485,1767733842987,-1000.0,0.000287,2]
[400585486,1767733842997,-167.15,0.00028817,2]
[400585487,1767733843007,-258.31,0.00028912,2]
[400585488,1767733843016,-3388.2,0.0002893,2]
[400585489,1767733843025,-1000.0,0.00029,2]
[400585490,1767733843036,-450.0,0.00029041,5]
[400585491,1767733843046,-929.86010205,0.00029068,2]
[400585492,1767733843055,-287.61899177,0.00029168,2]
[400585493,1767733843064,-642.94,0.00029168,2]
[400585494,1767733843074,-1000.0,0.000292,2]
[400585495,1767733843083,-164.66,0.00029456,2]
[400585496,1767733843093,-432.31509578,0.00029589,5]
[400585497,1767733843102,-1000.0,0.000297,2]
[400585498,1767733843112,-502.0,0.00029877,2]
[400585499,1767733843121,-240.95707197,0.00029999,2]
[400585500,1767733843130,-420.4436566,0.00029999,2]
[400585501,1767733843139,-500.0,0.00029999,2]
[400585502,1767733843149,-507.50063557,0.00029999,2]
[400585503,1767733843158,-280.16886747,0.00029999,2]
[400585504,1767733843167,-500.0,0.00029999,2]
[400585505,1767733843177,-1000.0,0.0003,2]
[400585506,1767733843187,-678.663351,0.000301,2]
[400585507,1767733843196,-298.26089446,0.00030537,2]
[400585508,1767733843205,-666.72878,0.00030537,2]
[400585509,1767733843214,-1080.00226137,0.0003085,5]
[400585510,1767733843224,-1051.26659803,0.0003085,5]
[400585511,1767733843234,-1136.65430536,0.0003085,5]
[400585512,1767733843243,-1062.21525552,0.0003085,5]
[400585513,1767733843252,-1033.25768692,0.0003085,5]
[400585514,1767733843261,-1077.52572658,0.0003085,5]
[400585515,1767733843271,-1044.0051972,0.0003085,5]
[400585516,1767733843285,-1127.0851213,0.0003085,5]
[400585517,1767733843295,-1078.08212577,0.0003085,5]
[400585518,1767733843304,-1106.86589548,0.0003085,5]
[400585519,1767733843314,-1127.31080208,0.0003085,5]
[400585520,1767733843325,-1033.05701084,0.0003085,5]
[400585521,1767733843335,-1027.69634493,0.0003085,5]
[400585522,1767733843344,-1039.45953477,0.0003085,5]
[400585523,1767733843355,-1107.85539446,0.0003085,5]
[400585524,1767733843365,-1015.20031578,0.0003085,5]
[400585525,1767733843374,-1111.96313708,0.0003085,5]
[400585526,1767733843383,-1093.92204838,0.0003085,5]
[400585527,1767733843393,-1056.83550997,0.0003085,5]
[400585528,1767733843402,-1442.76978992,0.0003085,5]
[400585529,1767733843412,-4768.97,0.000309,7]
[400585530,1767733843421,-483.06704357,0.00030994,2]
[400585531,1767733843430,-1000.0,0.00031,2]
[400585532,1767733843440,-3388.2,0.00031008,2]
[400585533,1767733843449,-4814.55666367,0.00031145,2]
[400585534,1767733843459,-14842.29556854,0.00031145,2]
[400585535,1767733843468,-502.0,0.00031231,3]
[400585536,1767733843478,-18655.0,0.000313,2]
[400585537,1767733843487,-150.0,0.00031359,2]
[400585538,1767733843496,-150.0,0.00031359,2]
[400585539,1767733843507,-150.0,0.00031361,2]
[400585540,1767733843516,-150.0,0.00031361,2]
[400585541,1767733843525,-150.0,0.00031361,2]
[400585542,1767733843534,-150.0,0.00031361,2]
[400585543,1767733843544,-150.0,0.00031361,2]
[400585544,1767733843554,-150.0,0.00031361,2]
[400585545,1767733843563,-150.0,0.00031361,2]
[400585546,1767733843573,-150.0,0.00031361,2]
[400585547,1767733843582,-150.0,0.00031361,2]
[400585548,1767733843591,-1329.0,0.00031361,2]
[400585549,1767733843601,-614.0,0.00031361,2]
[400585550,1767733843611,-1266.0,0.00031503,2]
[400585551,1767733843621,-433.0,0.00031503,2]
[400585552,1767733843630,-911.0,0.00031556,2]
[400585553,1767733843640,-1200.0,0.00031556,2]
[400585554,1767733843650,-4817.0,0.000316,2]
[400585555,1767733843660,-2435.0,0.000316,2]
[400585556,1767733843669,-500.0,0.00031699,2]
[400585557,1767733843679,-547.38397339,0.00031721,4]
[400585558,1767733843689,-339.98,0.00031723,30]
[400585559,1767733843698,-309.29654756,0.00031906,2]
[400585560,1767733843708,-691.39774486,0.00031906,2]
[400585561,1767733843717,-1000.0,0.00032,2]
[400585562,1767733843727,-1983.0,0.000321,2]
[400585563,1767733843736,-5532.0,0.000321,3]
[400585564,1767733843745,-4768.97,0.000325,7]
[400585565,1767733843755,-502.0,0.00032586,5]
[400585566,1767733843764,-304.13144408,0.00032604,3]
[400585567,1767733843773,-163.18531183,0.00032874,2]
[400585568,1767733843782,-200.0,0.00032876,2]
[400585569,1767733843792,-200.0,0.00032876,2]
[400585570,1767733843801,-501.0483089,0.00032877,5]
[400585571,1767733843811,-500.0,0.00032877,7]
[400585572,1767733843820,-500.0,0.00032877,7]
[400585573,1767733843830,-500.0,0.00032877,7]
[400585574,1767733843839,-500.0,0.00032877,7]
[400585575,1767733843848,-500.0,0.00032877,7]
[400585576,1767733843857,-500.0,0.00032877,7]
[400585577,1767733843867,-500.0,0.00032877,7]
[400585578,1767733843876,-500.0,0.00032877,7]
[400585579,1767733843885,-500.0,0.00032877,7]
[400585580,1767733843894,-500.0,0.00032877,7]
[400585581,1767733843904,-500.0,0.00032877,7]
[400585582,1767733843913,-500.0,0.00032877,7]
[400585583,1767733843922,-500.0,0.00032877,7]
[400585584,1767733843931,-500.0,0.00032877,7]
[400585585,1767733843941,-500.0,0.00032877,7]
[400585586,1767733843950,-500.0,0.00032877,7]
[400585587,1767733843959,-553.40165552,0.00032877,7]
[400585588,1767733843969,-500.0,0.00032877,7]
[400585589,1767733843978,-500.0,0.00032877,7]
[400585590,1767733843987,-500.0,0.00032877,7]
[400585591,1767733843997,-500.0,0.00032877,7]
[400585592,1767733844006,-500.0,0.00032877,7]
[400585593,1767733844015,-500.0,0.00032877,7]
[400585594,1767733844027,-500.0,0.00032877,7]
[400585595,1767733844037,-500.0,0.00032877,7]
[400585596,1767733844046,-500.0,0.00032877,7]
[400585597,1767733844055,-500.0,0.00032877,7]
[400585598,1767733844064,-500.0,0.00032877,7]
[400585599,1767733844074,-500.0,0.00032877,7]
[400585600,1767733844083,-500.0,0.00032877,7]
[400585601,1767733844093,-500.0,0.00032877,7]
[400585602,1767733844102,-500.0,0.00032877,7]
[400585603,1767733844112,-500.0,0.00032877,7]
[400585604,1767733844122,-500.0,0.00032877,7]
[400585605,1767733844132,-500.0,0.00032877,7]
[400585606,1767733844141,-500.0,0.00032877,7]
[400585607,1767733844151,-500.0,0.00032877,7]
[400585608,1767733844161,-500.0,0.00032877,7]
[400585609,1767733844171,-500.0,0.00032877,7]
[400585610,1767733844180,-500.0,0.00032877,7]
[400585611,1767733844190,-500.0,0.00032877,7]
[400585612,1767733844199,-500.0,0.00032877,7]
[400585613,1767733844208,-500.0,0.00032877,7]
[400585614,1767733844218,-500.0,0.00032877,7]
[400585615,1767733844228,-500.0,0.00032877,7]
[400585616,1767733844238,-500.0,0.00032877,7]
[400585617,1767733844247,-500.0,0.00032877,7]
[400585618,1767733844257,-500.0,0.00032877,7]
[400585619,1767733844266,-500.0,0.00032877,7]
[400585620,1767733844276,-500.0,0.00032877,7]
[400585621,1767733844290,-500.0,0.00032877,7]
[400585622,1767733844300,-500.0,0.00032877,7]
[400585623,1767733844309,-500.0,0.00032877,7]
[400585624,1767733844318,-500.0,0.00032877,7]
[400585625,1767733844329,-500.0,0.00032877,7]
[400585626,1767733844338,-500.0,0.00032877,7]
[400585627,1767733844348,-500.0,0.00032877,7]
[400585628,1767733844358,-249.45730659,0.00032877,7]
[400585629,1767733844368,-500.0,0.00032877,7]
[400585630,1767733844378,-500.0,0.00032877,7]
[400585631,1767733844387,-500.0,0.00032877,7]
[400585632,1767733844397,-500.0,0.00032877,7]
[400585633,1767733844555,-500.0,0.00032877,7]
[400585634,1767733844565,-500.0,0.00032877,7]
[400585635,1767733844575,-500.0,0.00032877,7]
[400585636,1767733844584,-500.0,0.00032877,7]
[400585637,1767733844594,-500.0,0.00032877,7]
[400585638,1767733844604,-1120.22,0.000329,14]
[400585639,1767733844613,-670.43,0.000329,14]
[400585640,1767733844622,-5532.0,0.000329,5]
[400585641,1767733844632,-1000.0,0.00033,2]
[400585642,1767733844642,-3388.2,0.00033086,3]
[400585643,1767733844651,-200.0,0.00033205,2]
[400585644,1767733844660,-200.0,0.00033205,2]
[400585645,1767733844670,-320.74051982,0.00033275,2]
[400585646,1767733844683,-716.97946142,0.00033275,2]
[400585647,1767733844695,-1000.0,0.00033382,2]
[400585648,1767733844705,-167.15,0.00033418,2]
[400585649,1767733844715,-200.0,0.00033537,2]
[400585650,1767733844724,-172.21,0.00033721,2]
[400585651,1767733844734,-200.0,0.00033872,2]
[400585652,1767733844743,-4768.97,0.000339,14]
[400585653,1767733844754,-502.0,0.00033941,6]
[400585654,1767733844763,-167.15,0.0003396,2]
[400585655,1767733844772,-215.66257831,0.00033998,2]
[400585656,1767733844782,-1000.0,0.00034,2]
[400585657,1767733844792,-4937.0,0.00034008,5]
[400585658,1767733844801,-483.06704357,0.00034091,2]
[400585659,1767733844811,-150.41,0.000341,6]
[400585660,1767733844820,-4814.55666367,0.00034204,2]
[400585661,1767733844829,-14842.29556854,0.00034204,2]
[400585662,1767733844839,-200.0,0.00034211,2]
[400585663,1767733844848,-172.21,0.00034353,2]
[400585664,1767733844859,-150.0,0.00034359,2]
[400585665,1767733844868,-150.0,0.00034361,2]
[400585666,1767733844877,-150.0,0.00034361,2]
[400585667,1767733844886,-150.0,0.00034361,2]
[400585668,1767733844895,-150.0,0.00034361,2]
[400585669,1767733844905,-1329.0,0.00034361,2]
[400585670,1767733844914,-614.0,0.00034361,2]
[400585671,1767733844923,-1266.0,0.00034503,2]
[400585672,1767733844933,-433.0,0.00034503,2]
[400585673,1767733844943,-1200.0,0.00034556,2]
[400585674,1767733844952,-4817.0,0.000346,2]
[400585675,1767733844962,-2435.0,0.000346,2]
[400585676,1767733844972,-332.60791905,0.00034644,2]
[400585677,1767733844981,-381.95401372,0.00034644,2]
[400585678,1767733844991,-236.74555436,0.00034837,13]
[400585679,1767733845000,-549.67835987,0.00034935,30]
[400585680,1767733845010,-1000.0,0.00035,2]
[400585681,1767733845019,-3388.2,0.00035164,4]
[400585682,1767733845028,-670.43,0.000352,14]
[400585683,1767733845039,-416.9074,0.0003522,30]
[400585684,1767733845048,-502.0,0.00035295,8]
[400585685,1767733845058,-4768.97,0.000356,14]
[400585686,1767733845067,-470.4,0.00035616,31]
[400585687,1767733845076,-362.92767531,0.00035616,59]
[400585688,1767733845085,-698.7,0.00035616,34]
[400585689,1767733845094,-500.0,0.00035616,7]
[400585690,1767733845103,-625.07659591,0.00035616,7]
[400585691,1767733845113,-500.0,0.00035616,7]
[400585692,1767733845122,-500.0,0.00035616,7]
[400585693,1767733845131,-500.0,0.00035616,7]
[400585694,1767733845140,-500.0,0.00035616,7]
[400585695,1767733845149,-500.0,0.00035616,7]
[400585696,1767733845158,-500.0,0.00035616,7]
[400585697,1767733845168,-500.0,0.00035616,7]
[400585698,1767733845177,-500.0,0.00035616,7]
[400585699,1767733845186,-500.0,0.00035616,7]
[400585700,1767733845195,-500.0,0.00035616,7]
[400585701,1767733845205,-500.0,0.00035616,7]
[400585702,1767733845215,-500.0,0.00035616,7]
[400585703,1767733845224,-500.0,0.00035616,7]
[400585704,1767733845233,-500.0,0.00035616,7]
[400585705,1767733845243,-293.45814038,0.00035616,7]
[400585706,1767733845252,-500.0,0.00035616,7]
[400585707,1767733845262,-500.0,0.00035616,7]
[400585708,1767733845271,-391.90128331,0.00035616,7]
[400585709,1767733845285,-500.0,0.00035616,7]
[400585710,1767733845295,-260.84007932,0.00035616,7]
[400585711,1767733845304,-500.0,0.00035616,7]
[400585712,1767733845314,-500.0,0.00035616,7]
[400585713,1767733845325,-300.0,0.00035616,5]
[400585714,1767733845334,-554.672824,0.000357,24]
[400585716,1767733845343,-1983.10251088,0.000358,2]
[400585718,1767733845354,-1120.22,0.000358,14]
[400585719,1767733845364,-2000.0,0.00036,30]
[400585721,1767733845374,-1000.0,0.00036,2]
[400585723,1767733845383,-344.91441206,0.00036013,2]
[400585725,1767733845393,-339.98,0.00036049,30]
[400585726,1767733845403,-929.86010204,0.00036225,2]
[400585727,1767733845412,-600.0,0.00036438,5]
[400585728,1767733845421,-2301.0,0.000366,30]
[400585729,1767733845431,-502.0,0.0003665,9]
[400585730,1767733845440,-4768.97,0.000368,14]
[400585731,1767733845451,-3000.0,0.00037,30]
[400585732,1767733845460,-2000.0,0.00037,30]
[400585733,1767733845469,-2021.0,0.00037,30]
[400585734,1767733845478,-1000.0,0.00037,2]
[400585735,1767733845488,-924.02,0.000371,30]
[400585736,1767733845497,-483.06704357,0.00037188,2]
[400585737,1767733845507,-3388.2,0.00037242,5]
[400585738,1767733845516,-900.0,0.0003726,5]
[400585739,1767733845525,-4814.55666367,0.00037263,2]
[400585740,1767733845535,-14842.29556854,0.00037263,2]
[400585741,1767733845544,-670.43,0.000373,14]
[400585742,1767733845553,-1329.0,0.00037361,2]
[400585743,1767733845563,-613.0,0.00037361,2]
[400585744,1767733845573,-357.6762453,0.00037382,2]
[400585745,1767733845582,-1266.0,0.00037503,2]
[400585746,1767733845592,-433.0,0.00037503,2]
[400585747,1767733845601,-4817.0,0.000376,2]
[400585748,1767733845611,-2435.0,0.000376,2]
[400585749,1767733845620,-1000.0,0.00038,2]
[400585750,1767733845630,-4768.98,0.00038,14]
[400585751,1767733845639,-502.0,0.00038005,11]
[400585752,1767733845648,-1200.0,0.00038082,5]
[400585753,1767733845658,-1000.0,0.00038213,7]
[400585754,1767733845667,-1000.0,0.000383,7]
[400585755,1767733845678,-1000.0,0.00038356,5]
[400585756,1767733845688,-237.12745582,0.00038368,120]
[400585757,1767733845697,-1000.0,0.00038407,7]
[400585758,1767733845707,-384.68,0.000385,120]
[400585759,1767733845716,-547.38397339,0.00038651,13]
[400585760,1767733845726,-1000.0,0.00038735,7]
[400585761,1767733845735,-370.91026638,0.00038751,2]
[400585762,1767733845745,-992.86947112,0.00038767,5]
[400585763,1767733845754,-1000.0,0.00038773,7]
[400585764,1767733845763,-1035.6177,0.00038888,30]
[400585765,1767733845773,-670.43,0.000389,14]
[400585766,1767733845782,-1500.0,0.00038904,5]
[400585767,1767733845792,-1000.0,0.00039,2]
[400585768,1767733845802,-2772.06,0.00039,30]
[400585769,1767733845811,-150.0,0.00039,2]
[400585770,1767733845821,-1000.0,0.00039093,7]
[400585771,1767733845830,-200.0,0.00039119,2]
[400585772,1767733845840,-200.0,0.00039119,2]
[400585773,1767733845848,-200.0,0.00039119,2]
[400585774,1767733845858,-200.0,0.00039119,2]
[400585775,1767733845868,-200.0,0.00039119,2]
[400585776,1767733845877,-200.0,0.00039119,2]
[400585777,1767733845887,-200.0,0.00039119,2]
[400585778,1767733845896,-200.0,0.00039119,2]
[400585779,1767733845905,-200.0,0.00039119,2]
[400585780,1767733845914,-200.0,0.00039119,2]
[400585781,1767733845925,-200.0,0.00039119,2]
[400585782,1767733845936,-200.0,0.00039119,2]
[400585783,1767733845945,-200.0,0.00039119,2]
[400585784,1767733845954,-200.0,0.00039119,2]
[400585785,1767733845963,-200.0,0.00039119,2]
[400585786,1767733845972,-200.0,0.00039119,2]
[400585787,1767733845982,-200.0,0.00039119,2]
[400585788,1767733845993,-200.0,0.00039119,2]
[400585789,1767733846003,-200.0,0.00039119,2]
[400585790,1767733846012,-200.0,0.00039119,2]
[400585791,1767733846022,-200.0,0.00039119,2]
[400585792,1767733846031,-200.0,0.00039119,2]
[400585793,1767733846041,-200.0,0.00039119,2]
[400585794,1767733846050,-200.0,0.00039119,2]
[400585795,1767733846060,-200.0,0.00039119,2]
[400585796,1767733846071,-200.0,0.00039119,2]
[400585797,1767733846080,-200.0,0.00039119,2]
[400585798,1767733846091,-200.0,0.00039119,2]
[400585799,1767733846101,-200.0,0.00039119,2]
[400585800,1767733846110,-200.0,0.00039119,2]
[400585801,1767733846120,-200.0,0.00039119,2]
[400585802,1767733846128,-200.0,0.00039119,2]
[400585803,1767733846137,-200.0,0.00039119,2]
[400585804,1767733846146,-200.0,0.00039119,2]
[400585805,1767733846155,-200.0,0.00039119,2]
[400585806,1767733846164,-200.0,0.00039119,2]
[400585807,1767733846174,-170.0,0.00039119,2]
[400585808,1767733846184,-1551.65362228,0.00039137,2]
[400585809,1767733846193,-1551.65362228,0.00039137,2]
[400585810,1767733846202,-1000.0,0.00039215,7]
[400585811,1767733846212,-3388.2,0.00039319,6]
[400585812,1767733846222,-502.0,0.00039359,12]
[400585813,1767733846231,-2736.502,0.00039387,54]
[400585814,1767733846242,-163.17,0.00039387,54]
[400585815,1767733846252,-462.8198376,0.00039448,2]
[400585816,1767733846261,-1307.44549302,0.000395,2]
[400585817,1767733846271,-1306.08924953,0.00039726,5]
[400585818,1767733846282,-1000.0,0.00039767,7]
[400585819,1767733846295,-1000.0,0.00039834,7]
[400585820,1767733846304,-1000.0,0.0004,2]
[400585821,1767733846314,-1120.22,0.0004,14]
[400585822,1767733846323,-199.49149987,0.0004,2]
[400585823,1767733846333,-152.0,0.0004,120]
[400585824,1767733846342,-152.0,0.0004,120]
[400585825,1767733846352,-160.0,0.0004,33]
[400585826,1767733846363,-160.0,0.0004,33]
[400585827,1767733846372,-160.0,0.0004,33]
[400585828,1767733846382,-160.0,0.0004,33]
[400585829,1767733846391,-231.2,0.0004,33]
[400585830,1767733846400,-1000.0,0.00040106,7]
[400585831,1767733846410,-384.63394623,0.0004012,2]
[400585832,1767733846419,-269.71254773,0.00040148,7]
[400585833,1767733846430,-483.06704357,0.00040286,2]
[400585834,1767733846439,-4768.97,0.000403,14]
[400585835,1767733846448,-4814.55666367,0.00040322,15]
[400585836,1767733846457,-14842.29556854,0.00040322,15]
[400585837,1767733846467,-339.98,0.00040375,120]
[400585838,1767733846476,-160.0,0.000405,35]
[400585839,1767733846486,-433.0,0.00040503,2]
[400585840,1767733846495,-152.0,0.000406,120]
[400585841,1767733846504,-4817.0,0.000406,2]
[400585842,1767733846514,-2435.0,0.000406,2]
[400585843,1767733846523,-152.0,0.000407,120]
[400585844,1767733846532,-502.0,0.00040714,14]
[400585845,1767733846541,-153.0,0.00040743,120]
[400585846,1767733846550,-153.0,0.00040743,120]
[400585847,1767733846560,-153.0,0.00040843,120]
[400585848,1767733846569,-153.0,0.00040843,120]
[400585849,1767733846579,-20537.0,0.00040856,30]
[400585850,1767733846588,-1000.0,0.000409,7]
[400585852,1767733846597,-153.0,0.00040943,120]
[400585854,1767733846606,-153.0,0.00040943,120]
[400585856,1767733846615,-1000.0,0.00041,2]
[400585858,1767733846624,-1161.89680024,0.00041,30]
[400585860,1767733846633,-199.0,0.00041,30]
[400585861,1767733846642,-1000.0,0.00041025,7]
[400585862,1767733846651,-153.0,0.00041043,120]
[400585863,1767733846661,-153.0,0.00041043,120]
[400585864,1767733846669,-1000.0,0.00041095,2]
[400585865,1767733846679,-1000.0,0.00041095,2]
[400585866,1767733846688,-1000.0,0.00041095,2]
[400585867,1767733846697,-1000.0,0.00041095,2]
[400585868,1767733846706,-1076.95721268,0.00041095,2]
[400585869,1767733846715,-6000.0,0.00041095,5]
[400585870,1767733846724,-4000.0,0.00041095,5]
[400585871,1767733846733,-500.0,0.00041095,2]
[400585872,1767733846742,-500.0,0.00041095,2]
[400585873,1767733846751,-500.0,0.00041095,2]
[400585874,1767733846760,-500.0,0.00041095,2]
[400585875,1767733846769,-500.0,0.00041095,2]
[400585876,1767733846779,-500.0,0.00041095,2]
[400585878,1767733846787,-500.0,0.00041095,2]
[400585880,1767733846796,-500.0,0.00041095,2]
[400585882,1767733846805,-500.0,0.00041095,2]
[400585883,1767733846814,-500.0,0.00041095,2]
[400585884,1767733846823,-500.0,0.00041095,2]
[400585885,1767733846832,-500.0,0.00041095,2]
[400585886,1767733846841,-500.0,0.00041095,2]
[400585887,1767733846850,-500.0,0.00041095,2]
[400585888,1767733846860,-600.0,0.00041096,120]
[400585889,1767733846870,-150.0,0.00041096,10]
[400585891,1767733846880,-150.0,0.00041096,10]
[400585893,1767733846889,-254.0,0.00041096,30]
[400585897,1767733847040,-2000.0,0.00041096,13]
[400585899,1767733847049,-2000.0,0.00041096,13]
[400585901,1767733847059,-2000.0,0.00041096,13]
[400585903,1767733847068,-2000.0,0.00041096,13]
[400585904,1767733847078,-2000.0,0.00041096,13]
[400585905,1767733847088,-2000.0,0.00041096,13]
[400585906,1767733847098,-2000.0,0.00041096,13]
[400585907,1767733847112,-2000.0,0.00041096,13]
[400585908,1767733847122,-2000.0,0.00041096,13]
[400585909,1767733847131,-2000.0,0.00041096,13]
[400585910,1767733847140,-1312.0,0.00041096,13]
[400585911,1767733847149,-784.0,0.00041096,61]
[400585912,1767733847160,-1164.5,0.00041096,64]
[400585913,1767733847169,-153.0,0.00041143,120]
[400585914,1767733847179,-153.0,0.00041143,120]
[400585915,1767733847188,-153.0,0.00041243,120]
[400585916,1767733847198,-153.0,0.00041243,120]
[400585917,1767733847207,-20537.0,0.00041277,30]
[400585918,1767733847217,-152.0,0.000413,120]
[400585919,1767733847226,-153.0,0.00041343,120]
[400585920,1767733847235,-153.0,0.00041343,120]